[Event "41st Arco Open 2019"]
[Site "Arco"]
[Date "2019.10.08"]
[Round "5"]
[White "Petrov, Nikita"]
[Black "Favaloro, Andrea"]
[Result "1-0"]
[ECO "D35"]
[WhiteElo "2586"]
[BlackElo "2338"]
[Annotator "RC"]
[PlyCount "73"]
[EventDate "2019.10.04"]
[EventType "swiss"]
[EventCountry "ITA"]
[SourceTitle "playchess.com"]
[Source "ChessBase"]
[SourceQuality "1"]
[TimeControl "40/5400+30:1800+30"]

1. d4 {[%emt 0:00:30]} Nf6 {[%emt 0:00:30]} 2. c4 {[%emt 0:00:00]} e6 {[%emt 0:00:00]} 3. Nc3 {[%emt 0:00:00]} d5 {[%emt 0:01:00]} 4. cxd5 {[%emt 0:00:30]} exd5 {[%emt 0:00:30]} 5. Bg5 {[%emt 0:00:30]} c6 {[%emt 0:00:30]} 6. e3 Nbd7 {[%emt 0:00:30]} 7. Bd3 {[%emt 0:02:00]} Be7 {[%emt 0:06:30]} 8. h3 Ne4 {[%emt 0:03:30]} 9. Bf4 {[%emt 0:07:00]} Ndf6 {[%emt 0:01:30]} 10. Qc2 {[%emt 0:09:30]} Bd6 {[%emt 0:07:30]} 11. Bxd6 {[%emt 0:11:30]} Nxd6 12. Nf3 {[%emt 0:01:30]} g6 {[%emt 0:04:00]} 13. g4 Qe7 {[%emt 0:00:30]} 14. Nd2 {[%emt 0:07:00]} Be6 {[%emt 0:10:30]} 15. O-O-O O-O-O {[%emt 0:00:30]} 16. f3 {[%emt 0:06:00]} Kb8 {[%emt 0:03:30]} 17. Kb1 {[%emt 0:06:30]} Nd7 {[%emt 0:02:30]} 18. e4 {[%emt 0:03:30]} dxe4 19. fxe4 {[%emt 0:01:30]} Nb6 {[%emt 0:03:00]} 20. Nf3 {[%emt 0:00:00]} Bc8 {[%emt 0:08:30]} 21. Qh2 {[%emt 0:09:00]} Ka8 {[%emt 0:01:30]} 22. Rhe1 {[%emt 0:00:30]} Ne8 {[%emt 0:08:30]} 23. d5 {[%emt 0:14:30]} cxd5 {[%emt 0:16:30]} 24. exd5 {[%emt 0:00:30]} Qf6 {[%emt 0:00:00]} 25. Ne5 {[%emt 0:07:09]} Nd6 {[%emt 0:00:00]} 26. Rf1 {[%emt 0:00:38]} Qg7 {[%emt 0:04:58]} 27. Ne4 {[%emt 0:00:30]} Nxe4 {[%emt 0:08:37]} 28. Rxf7 {[%emt 0:08:11]} Qh6 {[%emt 0:01:46]} 29. Bxe4 {[%emt 0:00:05]} Qe3 {[%emt 0:04:47]} 30. Qf4 {[%emt 0:04:09]} Qe2 {[%emt 0:01:50]} 31. Bf3 {[%emt 0:00:23]} Qb5 32. Qd4 {[%emt 0:01:32]} Be6 {[%emt 0:00:00]} 33. Rxb7 Kxb7 {[%emt 0:02:19]} 34. dxe6+ {[%emt 0:00:56]} Ka6 35. Nd7 {[%emt 0:00:42]} Nxd7 {[%emt 0:01:06]} 36. exd7 Qb6 {[%emt 0:00:35]} 37. Qa4+ {[%emt 0:00:47]} 1-0

[Event "41st Arco Open 2019"]
[Site "Arco"]
[Date "2019.10.08"]
[Round "5"]
[White "Halkias, Stelios"]
[Black "Vezzosi, Paolo"]
[Result "1-0"]
[ECO "E14"]
[WhiteElo "2530"]
[BlackElo "2235"]
[Annotator "RC"]
[PlyCount "85"]
[EventDate "2019.10.04"]
[EventType "swiss"]
[EventCountry "ITA"]
[SourceTitle "playchess.com"]
[Source "ChessBase"]
[SourceQuality "1"]
[TimeControl "40/5400+30:1800+30"]

1. Nf3 {[%emt 0:00:30]} Nf6 {[%emt 0:00:30]} 2. d4 {[%emt 0:00:00]} e6 {[%emt 0:00:00]} 3. e3 {[%emt 0:00:00]} b6 {[%emt 0:02:00]} 4. Bd3 {[%emt 0:00:30]} Bb7 5. O-O {[%emt 0:00:30]} Be7 {[%emt 0:04:00]} 6. c4 {[%emt 0:02:30]} O-O {[%emt 0:00:30]} 7. Nc3 {[%emt 0:00:30]} d5 {[%emt 0:00:30]} 8. b3 {[%emt 0:03:30]} Nbd7 {[%emt 0:00:30]} 9. Bb2 {[%emt 0:00:00]} Re8 {[%emt 0:12:30]} 10. Qe2 {[%emt 0:03:00]} c5 {[%emt 0:03:30]} 11. cxd5 {[%emt 0:16:30]} exd5 12. Rfd1 {[%emt 0:06:30]} Bd6 {[%emt 0:06:00]} 13. Rac1 {[%emt 0:14:30]} Qe7 14. Ba6 {[%emt 0:08:30]} Bxa6 {[%emt 0:05:00]} 15. Qxa6 {[%emt 0:00:00]} Rad8 {[%emt 0:02:30]} 16. Ba3 {[%emt 0:13:00]} Qe6 {[%emt 0:08:30]} 17. Nb5 {[%emt 0:00:30]} Ne4 {[%emt 0:05:30]} 18. Nxd6 {[%emt 0:06:30]} Qxd6 {[%emt 0:26:30]} 19. dxc5 {[%emt 0:01:30]} Ndxc5 {[%emt 0:00:00]} 20. Qe2 {[%emt 0:00:30]} Qg6 {[%emt 0:00:00]} 21. Bb2 {[%emt 0:00:30]} Ng5 {[%emt 0:00:00]} 22. Nxg5 Qxg5 {[%emt 0:00:00]} 23. Qf3 {[%emt 0:03:58]} Re4 {[%emt 0:08:37]} 24. Rc2 {[%emt 0:03:39]} h5 {[%emt 0:00:00]} 25. Rcd2 {[%emt 0:00:00]} Ne6 {[%emt 0:00:00]} 26. h3 {[%emt 0:02:54]} h4 {[%emt 0:00:00]} 27. Kh1 {[%emt 0:00:30]} Kf8 {[%emt 0:00:00]} 28. Rd3 {[%emt 0:01:31]} Kg8 29. R3d2 {[%emt 0:00:13]} Kf8 {[%emt 0:00:00]} 30. Qe2 d4 {[%emt 0:11:02]} 31. Qf3 {[%emt 0:07:50]} Qd5 {[%emt 0:04:03]} 32. Bxd4 {[%emt 0:02:07]} Nxd4 {[%emt 0:00:00]} 33. Rxd4 Rxd4 {[%emt 0:00:00]} 34. Rxd4 {[%emt 0:01:46]} Qxf3 35. Rxd8+ {[%emt 0:00:13]} Ke7 {[%emt 0:00:00]} 36. gxf3 {[%emt 0:00:04]} Kxd8 {[%emt 0:00:00]} 37. Kg2 {[%emt 0:01:42]} Ke7 {[%emt 0:00:00]} 38. f4 {[%emt 0:00:30]} f5 {[%emt 0:00:00]} 39. Kf3 Ke6 {[%emt 0:00:12]} 40. Ke2 {[%emt 0:01:44]} Kd5 {[%emt 0:06:08]} 41. Kd3 {[%emt 0:30:21]} g6 {[%emt 0:26:16]} 42. f3 {[%emt 0:00:00]} Kc5 {[%emt 0:00:47]} 43. a3 {[%emt 0:01:47]} 1-0

[Event "41st Arco Open 2019"]
[Site "Arco"]
[Date "2019.10.08"]
[Round "5"]
[White "Horvath, Jozsef"]
[Black "Lezzerini, Marco"]
[Result "1-0"]
[ECO "D40"]
[WhiteElo "2450"]
[BlackElo "2116"]
[Annotator "ChessBase"]
[PlyCount "111"]
[EventDate "2019.10.04"]
[EventType "swiss"]
[EventCountry "ITA"]
[SourceTitle "playchess.com"]
[Source "ChessBase"]
[SourceQuality "1"]
[TimeControl "40/5400+30:1800+30"]

1. d4 {[%emt 0:00:30]} e6 {[%emt 0:00:30]} 2. Nf3 {[%emt 0:00:30]} c5 {[%emt 0:00:00]} 3. e3 {[%emt 0:00:00]} d5 {[%emt 0:00:00]} 4. c4 {[%emt 0:00:00]} Nf6 5. cxd5 {[%emt 0:01:30]} exd5 {[%emt 0:03:00]} 6. Nc3 {[%emt 0:07:30]} a6 {[%emt 0:06:30]} 7. Be2 {[%emt 0:00:00]} Be7 {[%emt 0:02:30]} 8. O-O O-O {[%emt 0:00:00]} 9. b3 {[%emt 0:00:00]} cxd4 {[%emt 0:08:00]} 10. Nxd4 {[%emt 0:00:00]} Nc6 {[%emt 0:00:00]} 11. Bb2 {[%emt 0:00:30]} Re8 12. Rc1 {[%emt 0:07:30]} Bd6 {[%emt 0:03:30]} 13. Nxc6 {[%emt 0:06:30]} bxc6 {[%emt 0:00:30]} 14. Na4 {[%emt 0:06:30]} Bd7 {[%emt 0:14:30]} 15. Nc5 {[%emt 0:00:30]} Ne4 {[%emt 0:02:30]} 16. Nxe4 {[%emt 0:17:30]} Rxe4 {[%emt 0:07:30]} 17. Bf3 {[%emt 0:00:30]} Re8 18. g3 {[%emt 0:01:30]} Qe7 {[%emt 0:04:00]} 19. Qd4 {[%emt 0:06:30]} f6 {[%emt 0:08:30]} 20. Rfd1 {[%emt 0:04:30]} Be5 {[%emt 0:00:30]} 21. Qd2 {[%emt 0:05:30]} Bxb2 {[%emt 0:08:30]} 22. Qxb2 {[%emt 0:00:30]} f5 {[%emt 0:00:30]} 23. Qd4 {[%emt 0:02:30]} a5 {[%emt 0:00:00]} 24. Rc5 {[%emt 0:00:30]} g6 {[%emt 0:06:00]} 25. Qc3 {[%emt 0:05:30]} Qg7 {[%emt 0:05:30]} 26. Rd4 {[%emt 0:01:30]} g5 {[%emt 0:01:25]} 27. Rxa5 {[%emt 0:07:10]} Rxa5 {[%emt 0:01:15]} 28. Qxa5 {[%emt 0:04:22]} f4 {[%emt 0:04:42]} 29. Qd2 {[%emt 0:00:50]} fxe3 {[%emt 0:01:38]} 30. fxe3 {[%emt 0:02:00]} Rf8 {[%emt 0:00:52]} 31. Bg2 {[%emt 0:00:00]} Bf5 {[%emt 0:00:00]} 32. b4 {[%emt 0:00:00]} Kh8 {[%emt 0:03:55]} 33. a4 {[%emt 0:04:31]} Qf6 {[%emt 0:00:36]} 34. Qf2 {[%emt 0:01:00]} Qe7 {[%emt 0:00:00]} 35. Qd2 {[%emt 0:00:37]} Qf6 {[%emt 0:01:00]} 36. Qb2 {[%emt 0:01:14]} Kg8 {[%emt 0:01:51]} 37. Rd2 {[%emt 0:04:24]} Qe6 {[%emt 0:04:39]} 38. Qd4 {[%emt 0:00:45]} Bh3 {[%emt 0:00:00]} 39. Bxh3 {[%emt 0:00:00]} Qxh3 {[%emt 0:00:00]} 40. Rd1 {[%emt 0:04:16]} Qf5 {[%emt 0:00:00]} 41. Qd2 {[%emt 0:02:21]} h6 {[%emt 0:06:07]} 42. b5 {[%emt 0:11:48]} cxb5 {[%emt 0:00:30]} 43. axb5 {[%emt 0:00:02]} Rd8 {[%emt 0:00:30]} 44. Qd4 Re8 45. b6 {[%emt 0:07:05]} Rb8 {[%emt 0:19:29]} 46. Rf1 {[%emt 0:01:04]} Qe4 {[%emt 0:00:00]} 47. Qxe4 {[%emt 0:00:00]} dxe4 {[%emt 0:00:00]} 48. Rb1 {[%emt 0:03:58]} Rb7 {[%emt 0:00:00]} 49. Kf2 {[%emt 0:00:25]} Kf7 {[%emt 0:00:00]} 50. Ke2 {[%emt 0:00:15]} Ke6 {[%emt 0:00:00]} 51. Kd2 {[%emt 0:00:09]} Kd5 {[%emt 0:00:00]} 52. Kc3 {[%emt 0:00:00]} Kc5 {[%emt 0:00:00]} 53. g4 {[%emt 0:00:58]} Kd5 {[%emt 0:00:00]} 54. Rb5+ {[%emt 0:00:16]} Kc6 {[%emt 0:00:00]} 55. Kc4 {[%emt 0:00:00]} Kd6 {[%emt 0:00:00]} 56. Rf5 {[%emt 0:01:34]} 1-0

[Event "41st Arco Open 2019"]
[Site "Arco"]
[Date "2019.10.08"]
[Round "5"]
[White "Sarkar, Justin"]
[Black "Kuhn, Tobias"]
[Result "1/2-1/2"]
[ECO "C20"]
[WhiteElo "2350"]
[BlackElo "2234"]
[Annotator "ChessBase"]
[PlyCount "90"]
[EventDate "2019.10.04"]
[EventType "swiss"]
[EventCountry "ITA"]
[SourceTitle "playchess.com"]
[Source "ChessBase"]
[SourceQuality "1"]
[TimeControl "40/5400+30:1800+30"]

1. e4 {[%emt 0:02:30]} e5 {[%emt 0:00:30]} 2. Qh5 {[%emt 0:01:30]} d6 {[%emt 0:03:30]} 3. Bc4 {[%emt 0:00:30]} g6 {[%emt 0:01:30]} 4. Qf3 {[%emt 0:00:00]} Nf6 5. Nc3 {[%emt 0:01:00]} c6 {[%emt 0:09:00]} 6. a4 {[%emt 0:06:30]} Bg7 {[%emt 0:00:30]} 7. d3 {[%emt 0:00:30]} Be6 {[%emt 0:03:30]} 8. Bxe6 {[%emt 0:05:30]} fxe6 {[%emt 0:00:00]} 9. Qh3 {[%emt 0:00:30]} Qe7 {[%emt 0:01:00]} 10. Nf3 {[%emt 0:19:30]} Nbd7 {[%emt 0:01:30]} 11. Bh6 {[%emt 0:07:30]} O-O 12. Bxg7 {[%emt 0:00:30]} Kxg7 {[%emt 0:11:00]} 13. d4 {[%emt 0:01:30]} exd4 14. Nxd4 {[%emt 0:00:00]} Rae8 {[%emt 0:07:00]} 15. O-O {[%emt 0:00:00]} e5 {[%emt 0:00:00]} 16. Nb3 {[%emt 0:04:30]} Nh5 {[%emt 0:06:00]} 17. Qe3 {[%emt 0:01:30]} a6 {[%emt 0:01:30]} 18. g3 {[%emt 0:00:30]} Rf6 {[%emt 0:06:30]} 19. Rad1 {[%emt 0:06:30]} Nf8 {[%emt 0:05:30]} 20. Rd2 {[%emt 0:05:30]} Ne6 21. Rfd1 {[%emt 0:00:00]} Rd8 {[%emt 0:02:00]} 22. a5 {[%emt 0:00:00]} Rf7 {[%emt 0:02:30]} 23. h4 {[%emt 0:14:30]} Qf8 {[%emt 0:04:30]} 24. Kg2 {[%emt 0:01:30]} Qe7 {[%emt 0:00:00]} 25. Ne2 {[%emt 0:02:50]} h6 {[%emt 0:22:23]} 26. c4 {[%emt 0:05:33]} c5 {[%emt 0:00:00]} 27. Nc3 {[%emt 0:00:00]} Nd4 {[%emt 0:00:00]} 28. Nd5 {[%emt 0:02:00]} Qd7 {[%emt 0:02:25]} 29. Nxd4 {[%emt 0:00:25]} cxd4 {[%emt 0:00:00]} 30. Qd3 {[%emt 0:00:04]} Rdf8 {[%emt 0:00:34]} 31. f3 {[%emt 0:08:31]} Rxf3 {[%emt 0:08:03]} 32. Qxf3 {[%emt 0:00:02]} Rxf3 {[%emt 0:00:30]} 33. Kxf3 Qh3 {[%emt 0:00:00]} 34. Rg1 {[%emt 0:01:19]} Nf6 35. Nxf6 {[%emt 0:00:32]} Kxf6 {[%emt 0:00:16]} 36. Rf2 {[%emt 0:00:00]} Ke6 {[%emt 0:01:29]} 37. Ke2 {[%emt 0:03:40]} Qg4+ {[%emt 0:03:20]} 38. Kd3 {[%emt 0:00:04]} g5 {[%emt 0:00:00]} 39. hxg5 {[%emt 0:00:00]} Qxg5 {[%emt 0:00:03]} 40. Rf3 {[%emt 0:00:41]} Qh5 {[%emt 0:00:00]} 41. Rgf1 {[%emt 0:00:49]} Qh2 {[%emt 0:06:57]} 42. R1f2 Qg1 {[%emt 0:11:31]} 43. Rf1 {[%emt 0:00:00]} Qh2 {[%emt 0:00:00]} 44. R1f2 Qg1 {[%emt 0:01:00]} 45. Rf1 {[%emt 0:01:00]} Qh2 {[%emt 0:00:00]} 1/2-1/2

[Event "41st Arco Open 2019"]
[Site "Arco"]
[Date "2019.10.08"]
[Round "5"]
[White "Molnar, Bela"]
[Black "Sorcinelli, Francesco"]
[Result "1-0"]
[ECO "B22"]
[WhiteElo "2305"]
[BlackElo "2065"]
[Annotator "ChessBase"]
[PlyCount "97"]
[EventDate "2019.10.04"]
[EventType "swiss"]
[EventCountry "ITA"]
[SourceTitle "playchess.com"]
[Source "ChessBase"]
[SourceQuality "1"]
[TimeControl "40/5400+30:1800+30"]

1. e4 {[%emt 0:00:30]} c5 {[%emt 0:00:30]} 2. Nf3 {[%emt 0:00:00]} Nc6 {[%emt 0:00:00]} 3. c3 {[%emt 0:00:00]} d5 {[%emt 0:01:00]} 4. exd5 {[%emt 0:00:30]} Qxd5 {[%emt 0:00:00]} 5. d4 {[%emt 0:00:30]} cxd4 {[%emt 0:00:00]} 6. cxd4 {[%emt 0:00:30]} Bg4 {[%emt 0:00:30]} 7. Nc3 {[%emt 0:00:30]} Qa5 {[%emt 0:01:30]} 8. Bb5 {[%emt 0:04:30]} O-O-O {[%emt 0:10:30]} 9. Bxc6 {[%emt 0:00:30]} bxc6 {[%emt 0:00:00]} 10. h3 {[%emt 0:00:30]} Qh5 {[%emt 0:06:00]} 11. Rg1 {[%emt 0:04:30]} Bxf3 {[%emt 0:02:30]} 12. gxf3 {[%emt 0:00:00]} e5 {[%emt 0:04:30]} 13. Qa4 {[%emt 0:26:00]} Qxf3 {[%emt 0:11:30]} 14. Rg3 {[%emt 0:00:00]} Qh1+ {[%emt 0:01:30]} 15. Ke2 {[%emt 0:00:00]} Ne7 {[%emt 0:11:30]} 16. Rf3 {[%emt 0:03:30]} exd4 {[%emt 0:00:00]} 17. Qa6+ {[%emt 0:06:30]} Kd7 {[%emt 0:03:00]} 18. Ne4 {[%emt 0:00:30]} Ke8 {[%emt 0:00:30]} 19. Nc5 {[%emt 0:12:30]} Rd5 {[%emt 0:12:30]} 20. Qxa7 f6 {[%emt 0:00:30]} 21. Nd3 {[%emt 0:05:00]} Rf5 {[%emt 0:06:30]} 22. Qb8+ {[%emt 0:06:30]} Kf7 {[%emt 0:00:30]} 23. Qb3+ {[%emt 0:00:00]} Nd5 24. Rxf5 {[%emt 0:04:00]} Qe4+ {[%emt 0:05:00]} 25. Be3 {[%emt 0:08:17]} Qxf5 {[%emt 0:05:17]} 26. Bxd4 {[%emt 0:00:00]} Bd6 {[%emt 0:00:47]} 27. Qb7+ {[%emt 0:00:00]} Bc7 {[%emt 0:00:48]} 28. Qxc6 {[%emt 0:00:00]} Re8+ {[%emt 0:00:49]} 29. Be3 {[%emt 0:00:00]} Qxd3+ {[%emt 0:01:47]} 30. Kxd3 Nb4+ {[%emt 0:00:03]} 31. Ke2 {[%emt 0:00:00]} Nxc6 {[%emt 0:00:00]} 32. Rc1 {[%emt 0:00:00]} Re6 {[%emt 0:00:33]} 33. b4 Bb6 {[%emt 0:00:30]} 34. a3 {[%emt 0:00:00]} Bxe3 {[%emt 0:01:02]} 35. fxe3 {[%emt 0:00:00]} f5 {[%emt 0:00:53]} 36. Rc5 {[%emt 0:00:00]} g6 {[%emt 0:00:00]} 37. b5 {[%emt 0:00:00]} Ne5 {[%emt 0:03:07]} 38. a4 g5 {[%emt 0:00:30]} 39. b6 {[%emt 0:00:00]} f4 {[%emt 0:03:53]} 40. a5 f3+ {[%emt 0:00:18]} 41. Kf1 {[%emt 0:32:13]} g4 {[%emt 0:00:00]} 42. b7 {[%emt 0:00:00]} g3 {[%emt 0:29:38]} 43. Rc7+ Kg6 {[%emt 0:00:30]} 44. b8=Q {[%emt 0:00:00]} g2+ {[%emt 0:01:50]} 45. Kg1 {[%emt 0:00:00]} Rf6 {[%emt 0:01:53]} 46. Qg8+ {[%emt 0:00:00]} Kf5 47. Rc5 {[%emt 0:00:00]} Rg6 {[%emt 0:03:56]} 48. Qf7+ Rf6 {[%emt 0:00:00]} 49. Qh5+ {[%emt 0:00:00]} 1-0

[Event "41st Arco Open 2019"]
[Site "Arco"]
[Date "2019.10.08"]
[Round "5"]
[White "Sedina, Elena"]
[Black "Felgendreher, Heiko"]
[Result "1-0"]
[ECO "B50"]
[WhiteElo "2294"]
[BlackElo "2196"]
[Annotator "ChessBase"]
[PlyCount "57"]
[EventDate "2019.10.04"]
[EventType "swiss"]
[EventCountry "ITA"]
[SourceTitle "playchess.com"]
[Source "ChessBase"]
[SourceQuality "1"]
[TimeControl "40/5400+30:1800+30"]

1. e4 {[%emt 0:00:30]} c5 {[%emt 0:00:30]} 2. Nf3 {[%emt 0:00:30]} d6 {[%emt 0:01:30]} 3. c3 {[%emt 0:01:30]} Nf6 {[%emt 0:00:00]} 4. Be2 {[%emt 0:00:00]} Nc6 5. d4 {[%emt 0:05:00]} e6 {[%emt 0:10:30]} 6. e5 {[%emt 0:27:30]} dxe5 {[%emt 0:00:30]} 7. dxe5 {[%emt 0:00:00]} Qxd1+ {[%emt 0:28:30]} 8. Bxd1 Nd5 {[%emt 0:00:30]} 9. O-O {[%emt 0:01:30]} b6 {[%emt 0:03:30]} 10. Re1 {[%emt 0:00:30]} Bb7 {[%emt 0:09:30]} 11. Bc2 {[%emt 0:23:30]} h6 {[%emt 0:04:30]} 12. h4 {[%emt 0:00:00]} Be7 {[%emt 0:00:00]} 13. Nbd2 {[%emt 0:11:00]} Bd8 {[%emt 0:03:00]} 14. Nc4 {[%emt 0:02:30]} Bc7 {[%emt 0:00:30]} 15. a4 {[%emt 0:00:00]} O-O-O {[%emt 0:02:30]} 16. Bd2 {[%emt 0:12:07]} Ba6 {[%emt 0:03:30]} 17. Na3 {[%emt 0:00:30]} Nde7 {[%emt 0:03:30]} 18. Bf4 {[%emt 0:05:39]} Bd3 {[%emt 0:00:30]} 19. Bb3 {[%emt 0:01:44]} Na5 {[%emt 0:15:25]} 20. Ba2 Nd5 {[%emt 0:00:00]} 21. Bg3 {[%emt 0:03:18]} Rhg8 22. Rad1 {[%emt 0:00:12]} Bf5 {[%emt 0:01:04]} 23. Nb5 Kb7 {[%emt 0:00:28]} 24. Bxd5+ {[%emt 0:01:23]} Rxd5 25. Rxd5 {[%emt 0:00:04]} exd5 {[%emt 0:01:44]} 26. e6 Bxg3 {[%emt 0:08:26]} 27. exf7 {[%emt 0:02:28]} Bxf2+ 28. Kxf2 {[%emt 0:00:05]} Rf8 {[%emt 0:01:10]} 29. Re7+ 1-0

[Event "41st Arco Open 2019"]
[Site "Arco"]
[Date "2019.10.08"]
[Round "5"]
[White "Glienke, Manfred"]
[Black "Zwahr, Paul"]
[Result "1/2-1/2"]
[ECO "A48"]
[WhiteElo "2235"]
[BlackElo "2282"]
[Annotator "RC"]
[PlyCount "53"]
[EventDate "2019.10.04"]
[EventType "swiss"]
[EventCountry "ITA"]
[SourceTitle "playchess.com"]
[Source "ChessBase"]
[SourceQuality "1"]
[TimeControl "40/5400+30:1800+30"]

1. d4 {[%emt 0:00:30]} Nf6 {[%emt 0:00:30]} 2. Nf3 {[%emt 0:00:00]} g6 {[%emt 0:00:00]} 3. Bf4 {[%emt 0:00:00]} Bg7 {[%emt 0:00:00]} 4. e3 {[%emt 0:00:30]} O-O 5. Bc4 {[%emt 0:00:00]} d6 {[%emt 0:13:00]} 6. h3 {[%emt 0:00:00]} Nbd7 {[%emt 0:00:30]} 7. O-O {[%emt 0:00:30]} Qe8 {[%emt 0:01:30]} 8. Nc3 {[%emt 0:15:30]} a6 {[%emt 0:01:30]} 9. a4 {[%emt 0:00:00]} e5 {[%emt 0:02:30]} 10. dxe5 Nxe5 {[%emt 0:00:30]} 11. Bb3 {[%emt 0:00:00]} Bd7 {[%emt 0:08:30]} 12. Re1 {[%emt 0:00:00]} Nxf3+ {[%emt 0:02:30]} 13. Qxf3 {[%emt 0:00:00]} Bc6 14. e4 {[%emt 0:00:00]} Nd7 {[%emt 0:02:00]} 15. Nd5 Qd8 {[%emt 0:00:30]} 16. c3 {[%emt 0:04:00]} a5 {[%emt 0:08:30]} 17. Qg3 Be5 {[%emt 0:11:30]} 18. Bxe5 {[%emt 0:09:00]} dxe5 19. Rad1 {[%emt 0:01:30]} Bxd5 {[%emt 0:05:00]} 20. Rxd5 {[%emt 0:02:30]} Qe7 21. h4 {[%emt 0:04:30]} c6 {[%emt 0:06:00]} 22. Rd2 Nc5 {[%emt 0:00:30]} 23. Bc2 {[%emt 0:03:00]} f6 {[%emt 0:05:30]} 24. Red1 Rad8 {[%emt 0:02:30]} 25. Qe3 {[%emt 0:02:00]} Rxd2 26. Qxd2 {[%emt 0:01:30]} Kg7 {[%emt 0:03:00]} 27. g3 {[%emt 0:04:30]} 1/2-1/2

[Event "41st Arco Open 2019"]
[Site "Arco"]
[Date "2019.10.08"]
[Round "5"]
[White "Pasini, Nicolo"]
[Black "Bonavoglia, Marco"]
[Result "1-0"]
[ECO "C45"]
[WhiteElo "2234"]
[BlackElo "1983"]
[Annotator "RC"]
[PlyCount "39"]
[EventDate "2019.10.04"]
[EventType "swiss"]
[EventCountry "ITA"]
[SourceTitle "playchess.com"]
[Source "ChessBase"]
[SourceQuality "1"]
[TimeControl "40/5400+30:1800+30"]

1. e4 {[%emt 0:00:30]} e5 {[%emt 0:00:30]} 2. Nf3 {[%emt 0:00:00]} Nc6 {[%emt 0:00:00]} 3. d4 {[%emt 0:00:00]} exd4 {[%emt 0:00:00]} 4. Nxd4 {[%emt 0:00:00]} Bc5 {[%emt 0:01:30]} 5. Nb3 {[%emt 0:00:00]} Bb6 {[%emt 0:00:30]} 6. Nc3 {[%emt 0:03:30]} Nf6 {[%emt 0:01:30]} 7. Qe2 {[%emt 0:00:00]} d6 {[%emt 0:02:30]} 8. Be3 Be6 {[%emt 0:01:30]} 9. O-O-O {[%emt 0:00:00]} Qe7 {[%emt 0:08:30]} 10. g3 {[%emt 0:00:00]} Ne5 {[%emt 0:07:30]} 11. Bg2 {[%emt 0:03:30]} Neg4 12. Bxb6 {[%emt 0:06:30]} axb6 {[%emt 0:09:00]} 13. f4 {[%emt 0:27:30]} b5 {[%emt 0:08:30]} 14. Qxb5+ {[%emt 0:00:00]} c6 {[%emt 0:00:30]} 15. Qe2 {[%emt 0:00:00]} Nd7 {[%emt 0:11:30]} 16. f5 {[%emt 0:00:00]} Qg5+ 17. Nd2 {[%emt 0:00:00]} Bxa2 {[%emt 0:10:00]} 18. h4 {[%emt 0:00:00]} Qe3 19. Qxg4 {[%emt 0:00:00]} Bc4 {[%emt 0:16:00]} 20. Qf3 {[%emt 0:00:00]} 1-0

[Event "41st Arco Open 2019"]
[Site "Arco"]
[Date "2019.10.08"]
[Round "5"]
[White "Schroeder, Wilfried"]
[Black "Cordara, Michele"]
[Result "1-0"]
[ECO "E14"]
[WhiteElo "2195"]
[BlackElo "1928"]
[Annotator "RC"]
[PlyCount "49"]
[EventDate "2019.10.04"]
[EventType "swiss"]
[EventCountry "ITA"]
[SourceTitle "playchess.com"]
[Source "ChessBase"]
[SourceQuality "1"]
[TimeControl "40/5400+30:1800+30"]

1. d4 {[%emt 0:00:30]} Nf6 {[%emt 0:00:30]} 2. Nf3 {[%emt 0:00:00]} e6 {[%emt 0:00:00]} 3. c4 {[%emt 0:00:00]} b6 {[%emt 0:02:00]} 4. e3 {[%emt 0:01:30]} Bb7 5. Bd3 {[%emt 0:00:30]} d5 {[%emt 0:04:00]} 6. O-O {[%emt 0:05:30]} Bd6 {[%emt 0:00:30]} 7. Nc3 {[%emt 0:03:30]} Nbd7 {[%emt 0:09:30]} 8. Qc2 {[%emt 0:10:30]} O-O {[%emt 0:05:30]} 9. e4 {[%emt 0:00:00]} dxe4 {[%emt 0:00:30]} 10. Nxe4 {[%emt 0:00:00]} Nxe4 {[%emt 0:00:30]} 11. Bxe4 {[%emt 0:00:00]} Bxe4 {[%emt 0:00:00]} 12. Qxe4 {[%emt 0:00:00]} Nf6 {[%emt 0:00:00]} 13. Qe2 {[%emt 0:01:30]} a5 {[%emt 0:14:30]} 14. Bg5 {[%emt 0:08:30]} h6 {[%emt 0:00:30]} 15. Bh4 {[%emt 0:06:30]} a4 {[%emt 0:00:30]} 16. Ne5 {[%emt 0:00:00]} Bxe5 {[%emt 0:10:30]} 17. dxe5 {[%emt 0:00:00]} Qd4 {[%emt 0:00:30]} 18. exf6 {[%emt 0:01:30]} Qxh4 {[%emt 0:00:00]} 19. fxg7 {[%emt 0:00:30]} Kxg7 {[%emt 0:03:00]} 20. Rad1 {[%emt 0:03:30]} Ra5 {[%emt 0:00:30]} 21. Rd3 {[%emt 0:04:30]} Rd8 {[%emt 0:04:30]} 22. Rg3+ Kf8 {[%emt 0:00:30]} 23. Rd1 {[%emt 0:16:00]} Rxd1+ 24. Qxd1 {[%emt 0:00:30]} Ke7 {[%emt 0:01:00]} 25. Rg8 {[%emt 0:01:30]} 1-0